bitfinex/quotes_SOLUSD_20220116
["timestamp","ask_amount","ask_price","bid_price","bid_amount"]
[1642319150115,3.89555946,149.49,149.43,1.9064848]
[1642319150315,3.89555946,149.49,149.43,8.1564848]
[1642319150514,3.89555946,149.49,149.43,7.9064848]
[1642319150716,3.89555946,149.49,149.43,6.0]
[1642319151118,3.89555946,149.49,149.42,31.78506139]
[1642319151721,3.89555946,149.49,149.42,32.03506139]
[1642319152120,3.89555946,149.49,149.42,26.03506139]
[1642319153021,3.89555946,149.49,149.43,24.5054]
[1642319153321,3.89555946,149.49,149.43,24.7554]
[1642319153521,3.89555946,149.49,149.43,24.5054]
[1642319153923,3.89555946,149.49,149.43,24.7554]
[1642319154422,1.89580049,149.52,149.43,24.7554]
[1642319155422,237.52925826,149.5,149.43,24.7554]
[1642319156125,200.33607233,149.5,149.43,31.7144]
[1642319157226,200.33607233,149.5,149.43,26.6618848]
[1642319158424,200.33607233,149.5,149.43,24.7554]
[1642319159327,200.33607233,149.5,149.43,24.5054]
[1642319159625,200.33607233,149.5,149.43,24.7554]
[1642319160528,200.33607233,149.5,149.43,24.5054]
[1642319160728,200.33607233,149.5,149.43,24.7554]
[1642319161228,200.33607233,149.5,149.43,24.5054]
[1642319161427,200.33607233,149.5,149.43,24.7554]
[1642319161631,200.33607233,149.5,149.43,24.5054]
[1642319161830,200.33607233,149.5,149.43,24.7554]
[1642319162029,200.33607233,149.5,149.43,24.5054]
[1642319162226,200.33607233,149.5,149.43,24.7554]
[1642319162429,200.33607233,149.5,149.43,24.5054]
[1642319162630,200.33607233,149.5,149.43,24.7554]
[1642319163040,200.33607233,149.5,149.43,24.5054]
[1642319163361,200.33607233,149.5,149.43,24.7554]
[1642319165165,200.33607233,149.5,149.43,24.5054]
[1642319165368,200.33607233,149.5,149.43,24.7554]
[1642319165566,200.33607233,149.5,149.43,24.5054]
[1642319167869,200.33607233,149.5,149.41,50.62538556]
[1642319168470,200.33607233,149.5,149.41,56.62538556]
[1642319168973,200.33607233,149.5,149.42,0.26]
[1642319169371,200.33607233,149.5,149.42,24.0591]
[1642319169770,200.33607233,149.5,149.42,24.0491]
[1642319170172,200.33607233,149.5,149.43,1.9064848]
[1642319170372,200.33607233,149.5,149.43,2.1564848]
[1642319170973,200.33607233,149.5,149.44,29.5776624]
[1642319171375,200.33607233,149.5,149.44,29.8276624]
[1642319171976,200.33607233,149.5,149.44,29.5776624]
[1642319172177,200.33607233,149.5,149.44,29.8276624]
[1642319172376,200.33607233,149.5,149.44,29.5776624]
[1642319172581,200.33607233,149.5,149.44,29.8276624]
[1642319172979,200.33607233,149.5,149.44,29.5776624]
[1642319173378,200.33607233,149.5,149.44,29.8276624]
[1642319173578,200.33607233,149.5,149.44,29.5776624]
[1642319173779,200.33607233,149.5,149.44,29.8276624]
[1642319175616,200.33607233,149.5,149.44,29.5776624]
[1642319176619,200.33607233,149.5,149.42,25.7055848]
[1642319176914,200.33607233,149.5,149.42,31.9555848]
[1642319177514,200.33607233,149.5,149.43,35.66144737]
[1642319177719,200.33607233,149.5,149.44,24.4698]
[1642319177915,200.33607233,149.5,149.44,24.7198]
[1642319185427,200.33607233,149.5,149.44,24.4698]
[1642319186829,200.33607233,149.5,149.44,24.7198]
[1642319190031,200.33607233,149.5,149.41,1.9064848]
[1642319191035,200.33607233,149.5,149.42,46.82997397]
[1642319191433,200.33607233,149.5,149.42,47.07997397]
[1642319195966,200.33607233,149.5,149.43,23.9302]
[1642319196367,200.33607233,149.5,149.43,24.1802]
[1642319199570,200.33607233,149.5,149.43,23.9302]
[1642319201477,200.33607233,149.5,149.42,46.82997397]
[1642319204777,200.33607233,149.5,149.4,26.5923848]
[1642319205479,200.33607233,149.5,149.4,26.8423848]
[1642319205685,200.33607233,149.5,149.4,26.5923848]
[1642319205887,200.33607233,149.5,149.41,36.92694416]
[1642319206282,200.33607233,149.5,149.41,37.17694416]
[1642319206783,200.33607233,149.5,149.41,39.08342896]
[1642319206982,200.33607233,149.5,149.42,24.7919]
[1642319211486,200.33607233,149.5,149.41,38.83342896]
[1642319212230,200.33607233,149.5,149.41,36.92694416]
[1642319214128,200.33607233,149.5,149.41,38.83342896]
[1642319218726,200.33607233,149.5,149.42,24.9407]
[1642319219828,250.593537,149.5,149.42,26.8471848]
[1642319220227,200.33607233,149.5,149.42,26.8471848]
[1642319220629,200.33607233,149.5,149.42,28.09415033]
[1642319220831,200.33607233,149.5,149.42,36.02766553]
[1642319221230,200.33607233,149.5,149.42,36.27766553]
[1642319221528,200.33607233,149.5,149.44,33.4361038]
[1642319222129,200.33607233,149.5,149.44,33.6861038]
[1642319222529,200.33607233,149.5,149.44,33.4361038]
[1642319222830,200.33607233,149.5,149.44,33.6861038]
[1642319224129,200.33607233,149.5,149.44,33.4361038]
[1642319224329,200.33607233,149.5,149.44,33.6861038]
[1642319226532,200.33607233,149.5,149.44,100.7161038]
[1642319226730,200.33607233,149.5,149.45,0.26]
[1642319227134,200.33607233,149.5,149.45,1.50696553]
[1642319227332,164.1173114,149.5,149.45,7.50696553]
[1642319227533,164.1173114,149.5,149.45,17.34696553]
[1642319227931,164.1173114,149.5,149.45,17.59696553]
[1642319228333,164.1173114,149.5,149.45,40.44466553]
[1642319229133,164.1173114,149.5,149.45,42.35115033]
[1642319230237,164.1173114,149.5,149.45,42.09115033]
[1642319230635,164.1173114,149.5,149.45,39.93466553]
[1642319232336,164.1173114,149.5,149.45,38.6877]
[1642319232736,164.1173114,149.5,149.45,38.9377]
[1642319241345,164.1173114,149.5,149.46,0.26]
[1642319241545,164.1173114,149.5,149.45,39.93466553]
[1642319241746,164.1173114,149.5,149.45,32.6877]
[1642319247978,164.1173114,149.5,149.46,0.26]
[1642319248774,164.1173114,149.5,149.46,1.50696553]
[1642319249875,164.1173114,149.5,149.47,0.70818323]
[1642319250077,6.0643,149.49,149.47,0.70818323]
[1642319253281,3.03219997,149.49,149.47,0.70818323]
[1642319253496,6.0643,149.49,149.47,0.70818323]
[1642319265549,6.0643,149.49,149.45,23.0977]
[1642319266144,164.1173114,149.5,149.45,23.0977]
[1642319266547,164.1173114,149.5,149.45,57.03081891]
[1642319271756,164.1173114,149.5,149.46,0.26]
[1642319271956,164.1173114,149.5,149.45,58.27778444]
[1642319272161,164.1173114,149.5,149.46,0.26]
[1642319273657,164.1173114,149.5,149.45,60.18426924]
[1642319274761,164.1173114,149.5,149.45,58.27778444]
[1642319276282,164.1173114,149.5,149.45,60.18426924]
[1642319279488,3.81499856,149.58,149.54,6.44]
[1642319279688,5.72597118,149.61,149.58,32.0]
[1642319279888,5.72597118,149.61,149.57,62.20949691]
[1642319280093,5.72597118,149.61,149.58,0.26]
[1642319280288,5.72597118,149.61,149.59,9.84]
[1642319280488,52.15839438,149.61,149.59,9.84]
[1642319280897,46.4724232,149.61,149.59,9.84]
[1642319281491,0.04,149.61,149.59,9.84]
[1642319283791,36.4989851,149.59,149.57,52.36949691]
[1642319283991,36.4989851,149.59,149.57,62.20949691]
[1642319285491,36.4989851,149.59,149.57,9.84]
[1642319285892,0.04,149.61,149.57,9.84]
[1642319292904,0.04,149.61,149.57,11.88836975]
[1642319293706,0.04,149.61,149.57,9.84]
[1642319295635,0.04,149.61,149.58,3.6520935]
[1642319295844,0.04,149.61,149.58,9.84]
[1642319296941,0.04,149.61,149.58,48.08815324]
[1642319297544,0.04,149.61,149.58,9.84]
[1642319301350,0.04,149.61,149.59,23.5068]
[1642319303552,0.04,149.61,149.56,60.5829961]
[1642319303752,0.04,149.61,149.57,24.3839]
[1642319304855,0.04,149.61,149.57,24.6339]
[1642319311961,0.04,149.61,149.57,34.4739]
[1642319316968,0.04,149.61,149.57,34.2239]
[1642319319074,113.0,149.6,149.52,33.5618]
[1642319319273,36.75064462,149.59,149.52,9.7793]
[1642319319473,36.75064462,149.59,149.52,14.37010874]
[1642319319873,0.04,149.61,149.53,24.1296]
[1642319320274,0.04,149.61,149.53,25.37959921]
[1642319320476,0.04,149.61,149.54,25.79379921]
[1642319320899,0.04,149.61,149.55,46.87001423]
[1642319321202,0.04,149.61,149.56,24.125]
[1642319321502,0.04,149.61,149.57,9.84]
[1642319321702,22.7899,149.7,149.59,8.20427201]
[1642319321903,22.7899,149.7,149.6,22.6633]
[1642319322401,22.7899,149.7,149.6,22.9133]
[1642319322603,49.79117343,149.69,149.6,22.9133]
[1642319322801,49.79117343,149.69,149.6,22.6633]
[1642319323003,49.79117343,149.69,149.6,22.9133]
[1642319326303,49.79117343,149.69,149.6,22.9333]
[1642319326505,49.79117343,149.69,149.6,22.9533]
[1642319328106,0.047458,149.73,149.6,22.9533]
[1642319328308,0.047458,149.73,149.61,77.38]
[1642319328509,0.047458,149.73,149.62,23.8638]
[1642319328707,0.047458,149.73,149.62,92.39379921]
[1642319328907,0.047458,149.73,149.63,0.26]
[1642319329309,0.047458,149.73,149.63,45.88001502]
[1642319329507,0.047458,149.73,149.63,45.62001502]
[1642319329707,0.047458,149.73,149.64,23.2256]
[1642319329906,0.047458,149.73,149.64,23.4756]
[1642319330107,0.047458,149.73,149.64,33.3156]
[1642319330507,0.047458,149.73,149.64,39.0116]
[1642319330707,0.047458,149.73,149.65,0.26]
[1642319330914,0.047458,149.73,149.66,9.84]
[1642319331110,7.14382378,149.78,149.67,226.1183]
[1642319331311,7.14382378,149.78,149.68,132.81]
[1642319331511,7.14382378,149.78,149.69,24.7439]
[1642319331710,7.14382378,149.78,149.71,38.44343449]
[1642319332008,7.14382378,149.78,149.72,10.1]
[1642319332410,1.4178526,149.78,149.72,10.35]
[1642319332609,22.06483893,149.78,149.72,10.35]
[1642319332815,1.4178526,149.78,149.72,10.1]
[1642319333011,1.4178526,149.78,149.72,33.8133]
[1642319333412,1.4178526,149.78,149.72,34.0633]
[1642319333817,1.4178526,149.78,149.72,101.3433]
[1642319335927,5.26e-05,149.78,149.72,101.0933]
[1642319336517,0.0400526,149.78,149.72,101.0933]
[1642319336719,5.72597118,149.91,149.74,67.28]
[1642319336922,5.72597118,149.91,149.75,77.38]
[1642319336923,44.56694962,149.88,149.75,77.38]
[1642319337122,48.34832361,149.88,149.76,15.4459809]
[1642319337321,48.34832361,149.88,149.77,0.26]
[1642319337522,48.34832361,149.88,149.76,15.4459809]
[1642319337523,48.34832361,149.88,149.78,9.84]
[1642319337722,48.34832361,149.88,149.79,9.84]
[1642319338325,44.56694962,149.88,149.79,9.84]
[1642319338923,46.2677255,149.88,149.79,9.84]
[1642319341929,46.2677255,149.88,149.79,9.88]
[1642319342628,56.2808255,149.88,149.79,9.88]
[1642319343730,54.58004962,149.88,149.79,9.88]
[1642319343933,44.56694962,149.88,149.79,9.88]
[1642319353465,44.56694962,149.88,149.8,22.8785]
[1642319354167,44.56694962,149.88,149.79,9.88]
[1642319354366,44.56694962,149.88,149.79,0.04]
[1642319355466,54.57964962,149.88,149.79,0.04]
[1642319357074,3.7884383,149.87,149.79,0.04]
[1642319358373,13.8018383,149.87,149.79,0.04]
[1642319360374,13.8018383,149.87,149.66,10.97764698]
[1642319360375,10.0151,149.84,149.7,19.7038]
[1642319360580,19.8551,149.84,149.7,9.8638]
[1642319360875,1.70077588,149.83,149.7,9.8638]
[1642319361076,9.84,149.84,149.7,9.8638]
[1642319361282,12.92876335,149.83,149.71,63.85181618]
[1642319361480,16.71720165,149.83,149.71,63.85181618]
[1642319361676,16.71720165,149.83,149.71,73.69181618]
[1642319361875,16.71720165,149.83,149.71,73.94181618]
[1642319362279,12.92876335,149.83,149.71,73.94181618]
[1642319362676,12.92876335,149.83,149.71,141.22181618]
[1642319362878,12.92876335,149.83,149.72,0.26]
[1642319363282,5.72597118,149.87,149.73,77.12]
[1642319363681,5.72597118,149.87,149.74,0.26]
[1642319363880,5.72597118,149.87,149.75,9.84]
[1642319364081,3.80281022,149.87,149.76,23.9567]
[1642319364279,37.34966228,149.86,149.77,22.58917085]
[1642319365081,37.34966228,149.86,149.78,24.1803]
[1642319365908,3.80556854,149.85,149.78,24.1803]
[1642319369585,3.80556854,149.85,149.79,49.66634737]
[1642319369987,7.61134198,149.85,149.79,49.66634737]
[1642319370184,7.61134198,149.85,149.78,24.1803]
[1642319370789,3.80577344,149.85,149.78,24.1803]
[1642319370989,37.34966228,149.86,149.78,24.1803]
[1642319371584,41.15543572,149.86,149.78,24.1803]
[1642319373514,41.15543572,149.86,149.78,34.2703]
[1642319373714,41.15543572,149.86,149.79,40.04805395]
[1642319373916,41.15543572,149.86,149.79,40.29805395]
[1642319374314,3.80577344,149.86,149.79,40.29805395]
[1642319375118,3.80577344,149.88,149.79,40.04805395]
[1642319375321,3.80577344,149.88,149.8,23.8205]
[1642319375520,43.17392835,149.87,149.8,23.8205]
[1642319378220,3.80577344,149.89,149.8,23.8205]
[1642319378421,3.80577344,149.89,149.81,0.26]
[1642319379322,38.20732256,149.89,149.81,0.26]
[1642319380823,38.20732256,149.89,149.8,23.8205]
[1642319382325,3.80577344,149.9,149.8,23.8205]
[1642319382524,3.80577344,149.9,149.81,67.28]
[1642319382727,3.80577344,149.9,149.82,23.8262]
[1642319382928,3.80577344,149.9,149.82,24.0762]
[1642319383126,3.80577344,149.91,149.82,91.3562]
[1642319383325,7.344e-05,149.91,149.83,136.91623308]
[1642319383527,7.344e-05,149.91,149.84,67.59830613]
[1642319383725,3.79599113,149.92,149.86,39.78805395]
[1642319384026,18.20037665,149.93,149.87,77.38]
[1642319384430,18.20037665,149.93,149.87,78.87652815]
[1642319384628,18.20037665,149.93,149.87,77.38]
[1642319384829,18.20037665,149.93,149.87,10.09]
[1642319385229,18.20037665,149.93,149.87,9.84]
[1642319387331,18.24037665,149.93,149.87,9.84]
[1642319389832,18.24037665,149.93,149.88,13.9599085]
[1642319390033,18.24037665,149.93,149.88,9.84]
[1642319402342,18.24037665,149.93,149.87,23.5858]
[1642319402343,113.0,149.92,149.87,10.91522892]
[1642319402545,113.0,149.92,149.83,24.7484]
[1642319403044,113.0,149.92,149.8,9.84]
[1642319403243,9.84,149.91,149.78,10.2004]
[1642319403446,10.0111,149.9,149.77,1.65508082]
[1642319403743,26.79282626,149.89,149.75,92.40297019]
[1642319404143,28.49360214,149.89,149.75,92.40297019]
[1642319404546,1.89051671,149.88,149.75,92.40297019]
[1642319404945,3.59129259,149.88,149.75,92.40297019]
[1642319405347,1.70077588,149.87,149.75,46.5239]
[1642319405648,11.54077588,149.87,149.75,46.5239]
[1642319405947,9.84,149.87,149.75,46.5239]
[1642319406345,9.84,149.87,149.76,48.58380138]
[1642319406346,18.03231563,149.86,149.76,48.58380138]
[1642319406846,18.03231563,149.86,149.75,46.5239]
[1642319407248,18.03231563,149.86,149.72,9.84]
[1642319407445,25.20509151,149.86,149.72,9.84]
[1642319407847,25.20509151,149.86,149.73,50.13930263]
[1642319408247,27.09560822,149.86,149.73,50.13930263]
[1642319408551,37.11040822,149.86,149.73,50.13930263]
[1642319409150,31.63840822,149.86,149.73,50.13930263]
[1642319409549,19.8556,149.85,149.73,50.13930263]
[1642319409950,21.55637588,149.85,149.73,50.13930263]
[1642319410751,21.55637588,149.85,149.7,23.8759]
[1642319410951,23.44689259,149.85,149.7,23.8759]
[1642319411752,23.44689259,149.85,149.71,47.16905165]
[1642319413454,23.44689259,149.85,149.7,23.8759]
[1642319414055,23.44689259,149.85,149.67,23.2599]
[1642319414354,32.36593964,149.85,149.68,48.5056262]
[1642319414557,1.89051671,149.84,149.68,48.5056262]
[1642319414780,26.96972626,149.82,149.68,48.5056262]
[1642319414983,9.84,149.81,149.68,48.7556262]
[1642319415182,9.84,149.81,149.68,48.5056262]
[1642319415682,11.54077588,149.81,149.68,48.5056262]
[1642319416383,21.55887588,149.81,149.68,48.5056262]
[1642319416583,9.84,149.81,149.69,67.28]
[1642319416783,1.89051671,149.84,149.69,161.94]
[1642319416986,11.73051671,149.84,149.71,67.28]
[1642319417185,1.89051671,149.84,149.72,33.2642]
[1642319417385,1.89051671,149.84,149.72,33.7742]
[1642319417586,1.89051671,149.84,149.73,67.28]
[1642319417785,28.63037193,149.88,149.75,37.70923191]
[1642319417985,28.63037193,149.88,149.76,23.782]
[1642319421393,28.63037193,149.88,149.76,24.032]
[1642319422392,28.63037193,149.88,149.76,91.312]
[1642319423294,28.63037193,149.88,149.76,91.062]
[1642319424495,28.63037193,149.88,149.77,0.26]
[1642319427094,28.63037193,149.88,149.79,43.99363601]
[1642319427495,28.63037193,149.88,149.79,44.24363601]
[1642319427695,1.89051671,149.91,149.79,111.52363601]
[1642319427897,1.89051671,149.91,149.81,67.28]
[1642319428297,1.89051671,149.91,149.81,0.25]
[1642319428700,34.98130073,149.9,149.81,0.25]
[1642319429398,34.98130073,149.9,149.8,91.9466]
[1642319429798,34.98130073,149.9,149.8,101.7866]
[1642319430398,34.98130073,149.9,149.8,34.2466]
[1642319431898,34.98130073,149.9,149.8,33.9966]
[1642319435909,34.98130073,149.9,149.8,34.2466]
[1642319437713,34.98130073,149.9,149.8,33.9966]
[1642319438314,34.98130073,149.9,149.81,0.26]
[1642319438513,34.98130073,149.9,149.8,34.2466]
[1642319439821,34.98130073,149.9,149.8,34.5066]
[1642319441437,34.98130073,149.9,149.8,34.2466]
[1642319442945,34.98130073,149.9,149.8,34.5066]
[1642319443543,34.98130073,149.9,149.8,33.9966]
[1642319443840,34.98130073,149.9,149.8,34.2466]
[1642319444239,34.98130073,149.9,149.8,33.9966]
[1642319444440,36.68207661,149.9,149.8,33.9966]
[1642319444740,38.57259332,149.9,149.8,33.9966]
[1642319445545,36.87181744,149.9,149.8,33.9966]
[1642319446343,1.89051671,149.89,149.8,34.5066]
[1642319446544,1.89051671,149.89,149.8,33.9966]
[1642319446750,1.89051671,149.89,149.8,34.2466]
[1642319447447,1.89051671,149.89,149.8,33.9966]
[1642319447647,1.89051671,149.89,149.8,34.2466]
[1642319447844,1.89051671,149.89,149.8,34.5066]
[1642319448644,1.89051671,149.89,149.8,34.2466]
[1642319448844,1.89051671,149.89,149.8,34.2566]
[1642319449044,1.89051671,149.89,149.81,67.28]
[1642319449346,1.89051671,149.89,149.82,38.62272172]
[1642319450347,36.87181744,149.9,149.82,38.62272172]
[1642319451251,34.98130073,149.9,149.82,38.62272172]
[1642319451447,34.98130073,149.9,149.82,61.76262172]
[1642319451949,36.87181744,149.9,149.82,61.76262172]
[1642319452358,36.87181744,149.9,149.82,23.1399]
[1642319453351,36.87181744,149.9,149.82,71.70892181]
[1642319453551,36.87181744,149.9,149.82,23.1399]
[1642319454953,36.87181744,149.9,149.82,127.83575113]
[1642319456550,34.98130073,149.9,149.82,127.83575113]
[1642319460052,36.87181744,149.9,149.82,127.83575113]
[1642319460854,34.98130073,149.9,149.82,127.83575113]
[1642319468858,1.89051671,149.92,149.82,127.83575113]
[1642319469961,26.53946118,149.91,149.82,127.83575113]
[1642319472360,26.53946118,149.91,149.82,90.4199]
[1642319472565,26.53946118,149.91,149.82,23.1399]
[1642319473361,28.42997789,149.91,149.82,23.1399]
[1642319474563,28.42997789,149.91,149.79,1.65508082]
[1642319474764,35.93397789,149.91,149.79,1.65508082]
[1642319474961,1.70077588,149.9,149.79,1.65508082]
[1642319475162,1.89051671,149.89,149.77,26.11178082]
[1642319475367,1.89051671,149.89,149.78,24.337]
[1642319475566,8.44568071,149.88,149.78,24.337]
[1642319476165,10.33619742,149.88,149.78,24.337]
[1642319479266,12.0369733,149.88,149.76,11.49508082]
[1642319479464,1.44857,149.87,149.76,1.65508082]
[1642319479663,9.84,149.86,149.76,1.65508082]
[1642319480362,26.53946118,149.85,149.76,37.69205672]
[1642319484967,26.53946118,149.85,149.77,24.8608]
[1642319492579,26.53946118,149.85,149.77,92.1408]
[1642319493381,11.73051671,149.9,149.77,92.1408]
[1642319494586,30.47273758,149.89,149.77,92.1408]
[1642319497088,30.47273758,149.89,149.77,24.8608]
[1642319498219,32.36325429,149.89,149.77,24.8608]
[1642319499622,30.47273758,149.89,149.77,24.8608]
[1642319499821,30.47273758,149.89,149.78,0.26]
[1642319500618,30.47273758,149.89,149.77,25.1108]
[1642319501120,32.36325429,149.89,149.77,26.76588082]
[1642319502021,32.36325429,149.89,149.77,94.04588082]
[1642319502227,32.36325429,149.89,149.78,0.26]
[1642319504124,32.36325429,149.89,149.78,1.91508082]
[1642319504323,32.36325429,149.89,149.79,35.64607723]
[1642319504832,32.36325429,149.89,149.79,35.89607723]
[1642319505024,32.36325429,149.89,149.8,24.0417]
[1642319505324,32.36325429,149.89,149.8,24.2917]
[1642319508325,32.36325429,149.89,149.81,0.26]
[1642319509028,30.47273758,149.89,149.81,0.26]
[1642319528278,30.47273758,149.89,149.8,91.5717]
[1642319529182,30.47273758,149.89,149.8,24.2917]
[1642319530882,30.47273758,149.89,149.8,132.75600213]
[1642319531983,30.47273758,149.89,149.81,0.26]
[1642319534386,1.89051671,149.9,149.86,0.30539856]
[1642319534586,1.671e-05,149.9,149.87,67.28]
[1642319534814,1.671e-05,149.9,149.88,0.26]
[1642319536017,1.671e-05,149.9,149.84,1.24826215]
[1642319536419,13.52230773,149.93,149.83,46.6595]
[1642319536816,13.52230773,149.93,149.83,46.9095]
[1642319537217,13.52230773,149.93,149.84,67.28]
[1642319537418,13.52230773,149.93,149.85,90.7727]
[1642319537816,13.52230773,149.93,149.85,91.0227]
[1642319538416,13.52230773,149.93,149.86,0.26]
[1642319538821,0.16806102,149.93,149.86,0.26]
[1642319539018,0.16806102,149.93,149.87,1.24826215]
[1642319539218,0.20806102,149.93,149.87,1.24826215]
[1642319539417,0.20806102,149.93,149.88,0.26]
[1642319539820,0.20806102,149.93,149.88,37.0050562]
[1642319540019,0.20806102,149.93,149.88,0.26]
[1642319540220,0.20806102,149.93,149.85,23.4927]
[1642319541021,0.20806102,149.93,149.85,65.75869296]
[1642319541621,0.20806102,149.93,149.85,133.28869296]
[1642319541921,0.20806102,149.93,149.85,133.03869296]
[1642319542322,0.20806102,149.93,149.85,133.28869296]
[1642319542524,0.20806102,149.93,149.86,0.26]
[1642319554536,33.35351584,149.97,149.87,38.0]
[1642319554744,33.35351584,149.97,149.88,24.1191]
[1642319555041,10.73291584,149.97,149.88,24.6291]
[1642319556741,10.73291584,149.97,149.88,24.3791]
[1642319557443,10.73291584,149.97,149.88,24.1191]
[1642319558344,10.73291584,149.97,149.89,0.26]
[1642319559344,10.73291584,149.97,149.88,24.1191]
[1642319561048,10.73291584,149.97,149.88,91.6491]
[1642319561244,10.73291584,149.97,149.88,24.1191]
[1642319562350,10.73291584,149.97,149.88,24.3691]
[1642319563150,10.73291584,149.97,149.88,91.6491]
[1642319563350,10.73291584,149.97,149.89,0.26]
[1642319565152,10.73291584,149.97,149.88,24.1191]
[1642319565557,10.73291584,149.97,149.88,24.3691]
[1642319568989,10.73291584,149.97,149.88,91.6491]
[1642319569191,10.73291584,149.97,149.89,0.26]
[1642319569391,10.73291584,149.97,149.88,91.6491]
[1642319569593,10.73291584,149.97,149.88,24.3691]
[1642319572695,10.73291584,149.97,149.88,66.6858286]
[1642319572896,10.73291584,149.97,149.89,67.54]
[1642319573094,10.73291584,149.97,149.89,68.78826215]
[1642319573397,10.73291584,149.97,149.89,69.03826215]
[1642319573598,10.73291584,149.97,149.9,24.2823]
[1642319573996,10.73291584,149.97,149.9,24.5323]
[1642319575901,10.73291584,149.97,149.87,1.24826215]
[1642319576104,34.58751584,149.97,149.87,1.24826215]
[1642319576298,34.58751584,149.97,149.85,22.9754]
[1642319576498,34.58751584,149.97,149.86,1.24813798]
[1642319576899,34.58751584,149.97,149.86,7.24813798]
[1642319577100,34.58751584,149.97,149.87,67.28]
[1642319577400,34.58751584,149.97,149.88,23.5965]
[1642319577802,34.58751584,149.97,149.89,0.26]
[1642319578199,34.58751584,149.97,149.88,29.8465]
[1642319578601,34.58751584,149.97,149.88,23.8465]
[1642319580202,34.58751584,149.97,149.89,67.28]
[1642319580404,34.58751584,149.97,149.89,67.53]
[1642319580801,34.58751584,149.97,149.9,23.9012]
[1642319581012,34.58751584,149.97,149.9,91.4412]
[1642319581201,34.58751584,149.97,149.9,24.1512]
[1642319581401,10.73291584,149.97,149.9,24.1512]
[1642319581601,0.07962902,150.03,149.96,0.32269584]
[1642319581802,3.80208713,150.01,149.98,0.30849075]
[1642319582005,3.80208713,150.01,149.99,9.84]
[1642319582405,3.80208713,150.01,150.0,0.26]
[1642319582603,0.07962902,150.03,150.0,67.54]
[1642319582803,0.07962902,150.03,150.0,77.38]
[1642319583005,0.07962902,150.03,150.0,84.87813798]
[1642319583403,0.07962902,150.03,150.0,78.62813798]
[1642319583708,0.07962902,150.03,150.0,77.63]
[1642319584703,0.07962902,150.03,150.02,0.31465009]
[1642319584904,0.07962902,150.03,150.02,77.43465009]
[1642319585305,0.07962902,150.03,150.02,77.94465009]
[1642319586405,0.07962902,150.03,150.02,77.12]
[1642319587308,58.11172905,150.03,150.02,77.12]
[1642319587607,113.0,150.02,149.94,9.84]
[1642319587809,113.0,150.02,149.92,9.84]
[1642319588009,113.06,150.02,149.92,9.84]
[1642319588207,113.06,150.02,149.88,23.4931]
[1642319588409,113.06,150.02,149.89,9.84]
[1642319588410,114.76077588,150.02,149.89,9.84]
[1642319588810,114.76077588,150.02,149.9,67.28]
[1642319589511,124.76307588,150.02,149.9,67.28]
[1642319590211,124.76307588,150.02,149.89,9.84]
[1642319590614,9.84,150.01,149.88,23.4931]
[1642319590813,10.0039,150.0,149.88,23.4931]
[1642319591014,21.54467588,150.0,149.88,23.4931]
[1642319591220,10.3186082,149.99,149.88,23.4931]
[1642319591416,12.01938408,149.99,149.88,23.4931]
[1642319591715,1.70077588,149.98,149.88,23.4931]
[1642319592314,10.3186082,149.99,149.89,67.54]
[1642319592915,10.3186082,149.99,149.89,67.79]
[1642319593117,10.3186082,149.99,149.89,67.54]
[1642319593716,10.3186082,149.99,149.89,0.26]
[1642319594116,12.01938408,149.99,149.89,0.26]
[1642319594518,12.01938408,149.99,149.88,23.4931]
[1642319594738,12.01938408,149.99,149.88,90.7731]
[1642319594940,12.01938408,149.99,149.89,0.26]
[1642319595341,12.01938408,149.99,149.88,23.4931]
[1642319596141,12.01938408,149.99,149.88,23.7431]
[1642319596341,12.01938408,149.99,149.89,67.54]
[1642319596639,10.3186082,149.99,149.89,67.04]
[1642319596839,10.3186082,149.99,149.89,67.29]
[1642319598742,10.3186082,149.99,149.89,0.26]
[1642319598942,12.01938408,149.99,149.88,0.02]
[1642319599142,21.85938408,149.99,149.88,0.02]
[1642319599342,21.85938408,149.99,149.86,67.28]
[1642319599550,21.85938408,149.99,149.86,108.34429927]
[1642319600344,21.85938408,149.99,149.87,0.26]
[1642319600544,31.86368408,149.99,149.87,0.26]
[1642319600750,30.1629082,149.99,149.87,0.26]
[1642319605359,31.86368408,149.99,149.87,0.26]